bitfinex-derivatives/quotes_BTCF0:USTF0_20251110
["timestamp","ask_amount","ask_price","bid_price","bid_amount"]
[1762739571692,0.45991187,105980.0,105970.0,0.04986359]
[1762739571890,0.45991187,105980.0,105970.0,0.03599359]
[1762739572099,0.45991187,105980.0,105970.0,0.08235359]
[1762739573199,0.45991187,105980.0,105970.0,0.19087194]
[1762739573399,0.09911187,105980.0,105970.0,0.28525994]
[1762739573596,0.09911187,105980.0,105970.0,0.23470643]
[1762739573795,0.004,105980.0,105970.0,0.23470643]
[1762739573996,0.004,105980.0,105970.0,0.91881205]
[1762739574499,0.0983792,105980.0,105970.0,0.52111843]
[1762739574904,0.0983792,105980.0,105970.0,0.75703843]
[1762739575202,0.0983792,105980.0,105970.0,0.52111843]
[1762739575402,0.40513,106010.0,106000.0,0.04636]
[1762739575600,0.00073267,106010.0,106000.0,0.17419613]
[1762739575800,0.13941517,106010.0,106000.0,0.08243574]
[1762739576393,0.13951493,106010.0,106000.0,0.08243574]
[1762739577002,0.13951493,106010.0,106000.0,0.22090529]
[1762739577504,0.17151493,106010.0,106000.0,0.22090529]
[1762739578300,0.15751493,106010.0,106000.0,0.22090529]
[1762739578497,0.14951493,106010.0,106000.0,0.22090529]
[1762739580101,0.4757359,106030.0,106020.0,0.04636]
[1762739580300,0.47646857,106030.0,106020.0,0.14066758]
[1762739581093,0.49253774,106030.0,106020.0,0.14066758]
[1762739581311,0.51053774,106030.0,106020.0,0.14066758]
[1762739581909,0.51053774,106030.0,106020.0,0.00219803]
[1762739583811,0.1521136,106020.0,106010.0,0.00014141]
[1762739584010,0.51364627,106020.0,106010.0,0.00233944]
[1762739585008,0.52864627,106020.0,106010.0,0.00233944]
[1762739585212,0.54164627,106020.0,106010.0,0.00233944]
[1762739585403,0.54164627,106020.0,106010.0,0.00014141]
[1762739586206,0.1387002,105990.0,105980.0,0.13846955]
[1762739586511,0.50030204,105990.0,105980.0,0.14066758]
[1762739586904,0.50030204,105990.0,105980.0,0.00219803]
[1762739587099,0.13950204,105990.0,105980.0,0.02548803]
[1762739587306,0.14050204,105990.0,105980.0,0.28440678]
[1762739587500,0.00406917,105990.0,105980.0,0.65271678]
[1762739587703,0.00406917,105990.0,105980.0,0.67271678]
[1762739588115,0.00106917,105990.0,105980.0,0.67271678]
[1762739588307,0.00506917,105990.0,105980.0,0.67271678]
[1762739588509,0.00806917,105990.0,105980.0,0.67071678]
[1762739589616,0.00806917,105990.0,105980.0,0.90659678]
[1762739589816,0.00806917,105990.0,105980.0,0.94046657]
[1762739590001,0.00664188,105990.0,105980.0,0.94046657]
[1762739590206,0.00014141,106000.0,105990.0,0.1407303]
[1762739590405,0.00014141,106000.0,105990.0,0.52372833]
[1762739591418,0.01514141,106000.0,105990.0,0.52372833]
[1762739591718,0.02814141,106000.0,105990.0,0.52372833]
[1762739593315,0.01314141,106000.0,105990.0,0.75960833]
[1762739593612,0.00414141,106000.0,105990.0,0.76860833]
[1762739593818,0.00414141,106000.0,105990.0,0.90707788]
[1762739594416,0.4551404,106030.0,106020.0,0.1473536]
[1762739594417,0.45565775,106030.0,106020.0,0.1473536]
[1762739594617,0.56165695,106040.0,106030.0,0.04636]
[1762739594813,0.20158962,106040.0,106030.0,0.04855803]
[1762739595020,0.56238962,106040.0,106030.0,0.04855803]
[1762739595219,0.56238962,106040.0,106030.0,0.00219803]
[1762739595914,0.1386646,106030.0,106020.0,0.00014141]
[1762739596221,0.50019727,106030.0,106020.0,0.00014141]
[1762739596415,1.16372502,106030.0,106020.0,0.00014141]
[1762739596616,1.17472502,106030.0,106020.0,1.41e-06]
[1762739600821,0.1531336,106020.0,106010.0,0.00014141]
[1762739601123,0.1387224,106010.0,106000.0,0.00011839]
[1762739601322,0.50025507,106010.0,106000.0,0.00231642]
[1762739602321,0.50025507,106010.0,106000.0,0.00011839]
[1762739602823,0.1515113,106000.0,105990.0,0.00014141]
[1762739603024,0.51304397,106000.0,105990.0,0.00233944]
[1762739603816,0.5131379,106000.0,105990.0,0.00233944]
[1762739604018,0.1515292,105980.0,105970.0,0.03386979]
[1762739604213,0.15372723,105980.0,105970.0,0.07744979]
[1762739604527,0.51452723,105980.0,105970.0,0.07744979]
[1762739604727,0.15372723,105980.0,105970.0,0.07744979]
[1762739604921,0.51452723,105980.0,105970.0,0.07744979]
[1762739605120,0.1387581,105970.0,105960.0,0.18214382]
[1762739605320,0.50175613,105970.0,105960.0,0.18214382]
[1762739606224,0.50175613,105970.0,105960.0,0.13856382]
[1762739606529,0.50475613,105970.0,105960.0,0.16606382]
[1762739607020,0.50575613,105970.0,105960.0,0.17506382]
[1762739607219,0.50575613,105970.0,105960.0,0.15256382]
[1762739607427,0.50575613,105970.0,105960.0,0.17506382]
[1762739607626,0.50575613,105970.0,105960.0,0.19614382]
[1762739608224,0.14495613,105970.0,105960.0,0.19614382]
[1762739608617,0.00619803,105970.0,105960.0,0.58359382]
[1762739608926,0.14495613,105970.0,105960.0,0.58359382]
[1762739609417,0.14495613,105970.0,105960.0,0.56359382]
[1762739610227,0.50575613,105970.0,105960.0,0.01409427]
[1762739610412,0.10058603,105970.0,105960.0,0.44512427]
[1762739610615,0.12227603,105970.0,105960.0,0.42512427]
[1762739610813,0.14495603,105970.0,105960.0,0.41847427]
[1762739611020,0.50575603,105970.0,105960.0,0.01409427]
[1762739611329,0.50575603,105970.0,105960.0,0.03659427]
[1762739611819,0.50575603,105970.0,105960.0,0.05767427]
[1762739613030,0.50575603,105970.0,105960.0,0.01409427]
[1762739613327,0.50586032,105970.0,105960.0,0.01409427]
[1762739614130,0.51586032,105970.0,105960.0,0.00609427]
[1762739614622,0.52586032,105970.0,105960.0,0.00109427]
[1762739615418,0.04799232,105970.0,105960.0,0.28419082]
[1762739615716,0.02410429,105970.0,105960.0,0.90091082]
[1762739615924,0.02410429,105970.0,105960.0,0.66499082]
[1762739616717,0.02410429,105970.0,105960.0,0.64499082]
[1762739616920,0.02410429,105970.0,105960.0,0.66499082]
[1762739617121,0.01410429,105970.0,105960.0,0.67199082]
[1762739617522,0.00110429,105970.0,105960.0,0.67199082]
[1762739617722,0.00410429,105970.0,105960.0,0.67499082]
[1762739618334,0.00110429,105970.0,105960.0,0.67199082]
[1762739618627,0.14286239,105970.0,105960.0,0.56059382]
[1762739618834,0.14506042,105970.0,105960.0,0.55394382]
[1762739619028,0.14506042,105970.0,105960.0,0.19314382]
[1762739619220,0.14506042,105970.0,105960.0,0.28754082]
[1762739619834,0.50586042,105970.0,105960.0,0.01109427]
[1762739621033,0.14506042,105970.0,105960.0,0.05467427]
[1762739621634,0.50586042,105970.0,105960.0,0.14907127]
[1762739621935,0.50586042,105970.0,105960.0,0.05467427]
[1762739622230,0.50286042,105970.0,105960.0,0.04567427]
[1762739622431,0.50486042,105970.0,105960.0,0.04667427]
[1762739623340,0.50486042,105970.0,105960.0,0.14107127]
[1762739623637,0.14406042,105970.0,105960.0,0.14107127]
[1762739623934,0.41047232,105970.0,105960.0,0.14107127]
[1762739624436,0.50486042,105970.0,105960.0,0.14107127]
[1762739624637,0.50486042,105970.0,105960.0,0.00309427]
[1762739625336,0.50486042,105970.0,105960.0,0.02559427]
[1762739625636,0.50486042,105970.0,105960.0,0.14107127]
[1762739626532,0.14406042,105970.0,105960.0,0.14107127]
[1762739627037,0.50486042,105970.0,105960.0,4.27e-06]
[1762739629338,0.153757,105960.0,105950.0,3.1e-06]
[1762739629641,0.51675503,105960.0,105950.0,3.1e-06]
[1762739630539,0.51975503,105960.0,105950.0,3.1e-06]
[1762739631541,0.52075503,105960.0,105950.0,0.0060031]
[1762739632741,0.52075503,105960.0,105950.0,1e-07]
[1762739633343,0.57128278,105960.0,105950.0,1e-07]
[1762739634744,0.1402137,105930.0,105920.0,0.07801979]
[1762739634945,0.5033196,105930.0,105920.0,0.07801979]
[1762739635647,0.5033196,105930.0,105920.0,0.03386979]
[1762739635946,0.5033196,105930.0,105920.0,0.07801979]
[1762739636144,0.5053196,105930.0,105920.0,0.17245239]
[1762739636346,0.5083196,105930.0,105920.0,0.18711239]
[1762739636542,0.5083196,105930.0,105920.0,0.17345239]
[1762739636746,0.5083196,105930.0,105920.0,0.07901979]
[1762739636941,0.5053196,105930.0,105920.0,0.26439036]
[1762739637142,0.5083196,105930.0,105920.0,0.26539036]
[1762739637645,0.5073196,105930.0,105920.0,0.05770979]
[1762739637854,0.5073196,105930.0,105920.0,0.12680776]
[1762739638150,0.5073196,105930.0,105920.0,0.03486979]
[1762739639237,0.5073196,105930.0,105920.0,0.001]
[1762739642646,0.1537926,105920.0,105910.0,0.17662433]
[1762739642848,0.51679063,105920.0,105910.0,0.17662433]
[1762739643050,0.51679063,105920.0,105910.0,0.12580776]
[1762739643555,0.51679063,105920.0,105910.0,0.03386979]
[1762739644450,0.1402316,105910.0,105900.0,0.0509209]
[1762739644655,0.50322963,105910.0,105900.0,0.0509209]
[1762739646156,0.50622963,105910.0,105900.0,0.0509209]
[1762739646646,0.50822963,105910.0,105900.0,0.0509209]
[1762739647255,0.50822963,105910.0,105900.0,0.14285887]
[1762739647555,0.50822963,105910.0,105900.0,0.0509209]
[1762739647746,0.50822963,105910.0,105900.0,0.00010433]
[1762739648857,0.51789963,105910.0,105900.0,0.00010433]
[1762739649454,0.51789963,105910.0,105900.0,0.16569887]
[1762739649674,0.51789963,105910.0,105900.0,0.14285887]
[1762739649851,0.51789963,105910.0,105900.0,0.0509209]
[1762739651950,0.51789963,105910.0,105900.0,0.00930074]
[1762739652258,0.1402405,105900.0,105890.0,4e-08]
[1762739652562,0.50323853,105900.0,105890.0,4e-08]
[1762739653152,0.50331568,105900.0,105890.0,4e-08]
[1762739653960,0.50331568,105900.0,105890.0,0.02284004]
[1762739654146,0.45752568,105900.0,105890.0,4e-08]
[1762739654351,0.45852568,105900.0,105890.0,4e-08]
[1762739655056,0.46152568,105900.0,105890.0,4e-08]
[1762739656356,0.50731568,105900.0,105890.0,0.15001801]
[1762739656858,0.50731568,105900.0,105890.0,0.05808004]
[1762739657049,0.50731568,105900.0,105890.0,0.15001801]
[1762739661768,0.50731568,105900.0,105890.0,0.02284004]
[1762739663057,0.46152568,105900.0,105890.0,4e-08]
[1762739663456,0.48414568,105900.0,105890.0,0.14788801]
[1762739663659,0.50597568,105900.0,105890.0,0.14788801]
[1762739664468,0.50597568,105900.0,105890.0,0.24234741]
[1762739664964,0.48414568,105900.0,105890.0,0.30973299]
[1762739665167,0.12334568,105900.0,105890.0,0.24234737]
[1762739665362,0.50597568,105900.0,105890.0,0.21527359]
[1762739665561,0.14517568,105900.0,105890.0,0.30973299]
[1762739665764,0.14517568,105900.0,105890.0,0.60314737]
[1762739665970,0.14517568,105900.0,105890.0,0.14788797]
[1762739667161,0.14517568,105900.0,105890.0,0.21527359]
[1762739668759,0.14517568,105900.0,105890.0,0.30973299]
[1762739669174,0.14517568,105900.0,105890.0,0.14788797]
[1762739670873,0.50597568,105900.0,105890.0,0.14788797]
[1762739671763,0.50597568,105900.0,105890.0,0.21527359]
[1762739672982,0.0944683,105880.0,105870.0,0.06794269]
[1762739673168,0.81826633,105880.0,105870.0,0.06794269]
[1762739673366,0.0944861,105860.0,105850.0,0.14798896]
[1762739673571,0.45758853,105860.0,105850.0,0.14798896]
[1762739673867,0.45758853,105860.0,105840.0,0.10456797]
[1762739673868,0.0944951,105850.0,105840.0,0.10456797]
[1762739674073,0.45749313,105850.0,105840.0,0.14788797]
[1762739675477,0.45949313,105850.0,105840.0,0.14788797]
[1762739675679,0.46249313,105850.0,105840.0,0.14788797]
[1762739679477,0.10169313,105850.0,105840.0,0.24239197]
[1762739679783,0.10169313,105850.0,105840.0,0.60319197]
[1762739680177,0.00719803,105850.0,105840.0,0.60319197]
[1762739680373,0.4553906,105860.0,105850.0,0.05595]
[1762739680573,0.45758863,105860.0,105850.0,0.14788797]
[1762739680782,0.45758863,105860.0,105850.0,0.24238307]
[1762739680978,0.00230243,105860.0,105850.0,0.60318307]
[1762739681680,0.00630243,105860.0,105850.0,0.60518307]
[1762739681882,0.00630243,105860.0,105850.0,0.69712104]
[1762739682086,0.00630243,105860.0,105850.0,0.71712104]
[1762739683086,0.00630243,105860.0,105850.0,0.8019033]
[1762739684072,0.00630243,105860.0,105850.0,0.7819033]
[1762739684277,0.00630243,105860.0,105850.0,0.8019033]
[1762739685685,0.02818715,105860.0,105850.0,0.71712104]
[1762739686287,0.00630243,105860.0,105850.0,0.71712104]
[1762739687779,0.00014141,105870.0,105860.0,0.1535061]
[1762739687990,0.02195721,105870.0,105860.0,0.62624407]
[1762739688283,0.02195721,105870.0,105860.0,1.15540407]
[1762739688496,0.455265,105890.0,105880.0,0.05902]
[1762739688692,0.11858831,105890.0,105880.0,0.15095797]
[1762739690090,0.11858831,105890.0,105880.0,0.24542637]
[1762739690287,0.11858831,105890.0,105880.0,0.60622637]
[1762739690591,0.11858271,105890.0,105880.0,0.60622637]
[1762739690784,0.11958271,105890.0,105880.0,0.51575797]
[1762739691186,0.12258271,105890.0,105880.0,0.51575797]
[1762739691388,0.12258271,105890.0,105880.0,0.61022797]
[1762739691788,0.09447,105880.0,105870.0,0.00014141]
[1762739692088,0.0944879,105860.0,105850.0,0.01263]
[1762739692290,0.84008115,105860.0,105850.0,0.01263]
[1762739693484,0.84008115,105860.0,105850.0,0.0339]
[1762739693793,0.84108115,105860.0,105850.0,0.0339]
[1762739694191,0.0944968,105850.0,105840.0,0.67609797]
[1762739694394,0.47929005,105850.0,105840.0,0.67609797]
[1762739694781,0.47929005,105850.0,105840.0,0.14693797]
[1762739695286,0.48029005,105850.0,105840.0,0.14693797]
[1762739696395,0.48329005,105850.0,105840.0,0.14693797]
[1762739697098,0.48329005,105850.0,105840.0,0.055]
[1762739700897,0.48329005,105850.0,105840.0,0.1495057]
[1762739701091,0.48329005,105850.0,105840.0,0.055]
[1762739705304,0.38879325,105850.0,105840.0,0.1495057]
[1762739705490,0.38879325,105850.0,105840.0,0.055]
[1762739705491,0.48329005,105850.0,105840.0,0.055]
[1762739705687,0.38879325,105850.0,105840.0,0.1495057]
[1762739705898,0.36091977,105860.0,105850.0,0.1494968]
[1762739706096,0.36091977,105860.0,105850.0,0.28841178]
[1762739706097,0.3631178,105860.0,105850.0,0.28841178]
[1762739706502,0.4576057,105860.0,105850.0,0.19391498]
[1762739706694,0.4576057,105860.0,105850.0,0.28841178]
[1762739707201,0.3761178,105860.0,105850.0,0.28841178]
[1762739707400,0.3771178,105860.0,105850.0,0.28841178]
[1762739707788,0.3641178,105860.0,105850.0,0.28841178]
[1762739707992,0.4848457,105860.0,105850.0,0.28941178]
[1762739708196,0.5074557,105860.0,105850.0,0.19491498]
[1762739709996,0.4129678,105860.0,105850.0,0.28941178]
[1762739710197,0.5074557,105860.0,105850.0,0.19491498]
[1762739710900,0.3903578,105860.0,105850.0,0.28941178]
[1762739711202,0.5074557,105860.0,105850.0,0.28941178]
[1762739712199,0.5074557,105860.0,105850.0,0.19491498]
[1762739712898,0.5074557,105860.0,105850.0,0.28941178]
[1762739713102,0.5074557,105860.0,105850.0,0.81865178]
[1762739713409,0.4129678,105860.0,105850.0,0.81865178]
[1762739713601,0.5074557,105860.0,105850.0,0.81865178]
[1762739714198,0.5074557,105860.0,105850.0,0.6797368]
[1762739714406,0.5074557,105860.0,105850.0,0.81865178]
[1762739714806,0.4129678,105860.0,105850.0,0.81865178]
[1762739715200,0.46349555,105860.0,105850.0,0.81865178]
[1762739715707,0.5074557,105860.0,105850.0,0.81865178]
[1762739716007,0.4129678,105860.0,105850.0,0.81865178]
[1762739716205,0.46349555,105860.0,105850.0,0.81865178]
[1762739716597,0.4129678,105860.0,105850.0,0.81865178]
[1762739717101,0.5185857,105860.0,105850.0,0.001]
[1762739717300,0.55771299,105860.0,105850.0,0.19491498]
[1762739717991,0.57997373,105860.0,105850.0,0.16118498]
[1762739718198,0.57997373,105860.0,105850.0,0.13991498]
[1762739718496,0.52971644,105860.0,105850.0,0.13991498]
[1762739719306,0.52971644,105860.0,105850.0,0.001]
[1762739720102,0.59691376,105860.0,105850.0,0.001]
[1762739721406,0.52971644,105860.0,105850.0,0.001]
[1762739724614,0.5298173,105860.0,105850.0,0.001]
[1762739726703,0.61374518,105860.0,105850.0,0.001]
[1762739727397,0.5298173,105860.0,105850.0,0.001]
[1762739728006,0.61374518,105860.0,105850.0,0.001]
[1762739728205,0.5298173,105860.0,105850.0,0.001]
[1762739733005,0.5288173,105860.0,105850.0,0.001]
[1762739733212,0.5408173,105860.0,105850.0,0.002]
[1762739733412,0.5378173,105860.0,105850.0,0.001]
[1762739733615,0.5508173,105860.0,105850.0,0.002]
[1762739734706,0.5498173,105860.0,105850.0,0.002]
[1762739739718,0.60021291,105860.0,105850.0,0.002]
[1762739740818,0.5498173,105860.0,105850.0,0.002]
[1762739741616,0.60023418,105860.0,105850.0,0.12479352]
[1762739741815,0.5498173,105860.0,105850.0,0.002]
[1762739743312,0.60025122,105860.0,105850.0,0.002]
[1762739746013,0.60025122,105860.0,105850.0,0.02327]
[1762739747210,0.61701292,105860.0,105850.0,0.02327]
[1762739748013,0.5498173,105860.0,105850.0,0.13753352]
[1762739748213,0.60028505,105860.0,105850.0,0.13753352]
[1762739749812,0.60028505,105860.0,105850.0,0.002]
[1762739750318,0.1395669,105850.0,105840.0,0.0579]
[1762739750514,0.52492653,105850.0,105840.0,0.13649352]
[1762739750704,0.58652428,105850.0,105840.0,0.04452]
[1762739750910,0.1479758,105840.0,105830.0,0.02231]
[1762739751217,0.53333543,105840.0,105830.0,0.12311352]
[1762739752521,0.53633543,105840.0,105830.0,0.12511352]
[1762739753315,0.53733543,105840.0,105830.0,0.13011352]
[1762739754820,0.53733543,105840.0,105830.0,0.05152]
[1762739755214,0.53733543,105840.0,105830.0,0.13011352]
[1762739757617,0.53716839,105840.0,105830.0,0.14274352]
[1762739757813,0.53448839,105840.0,105830.0,0.13011352]
[1762739758013,0.52876839,105840.0,105830.0,0.14274352]
[1762739759121,0.57923614,105840.0,105830.0,0.15256654]
[1762739759321,0.52876839,105840.0,105830.0,0.15256654]
[1762739760316,0.48369839,105840.0,105830.0,0.24098308]
[1762739760517,0.48369839,105840.0,105830.0,0.33549778]
[1762739761416,0.48369839,105840.0,105830.0,0.24098308]
[1762739761719,0.38919259,105840.0,105830.0,0.33549778]
[1762739762026,0.48369839,105840.0,105830.0,0.35549778]
[1762739762323,0.50683839,105840.0,105830.0,0.26098308]
[1762739762527,0.52876839,105840.0,105830.0,0.24098308]
[1762739763423,0.50683839,105840.0,105830.0,0.33549778]
[1762739763621,0.48369839,105840.0,105830.0,0.33549778]
[1762739764932,0.48369839,105840.0,105830.0,0.24098308]
[1762739765121,0.52876839,105840.0,105830.0,0.24098308]
[1762739765315,0.52876839,105840.0,105830.0,0.38838308]
[1762739765832,0.50683839,105840.0,105830.0,0.48289778]
[1762739766220,0.50683839,105840.0,105830.0,0.50289778]
[1762739766417,0.50683839,105840.0,105830.0,0.48289778]
[1762739766621,0.52876839,105840.0,105830.0,0.50289778]
[1762739767517,0.52876839,105840.0,105830.0,0.59169778]
[1762739767518,0.02839259,105840.0,105830.0,0.59169778]
[1762739767722,0.12289839,105840.0,105830.0,0.59169778]
[1762739768222,0.12289839,105840.0,105830.0,0.35549778]
[1762739768425,0.12289839,105840.0,105830.0,0.59169778]
[1762739768732,0.02839259,105840.0,105830.0,0.59169778]
[1762739768929,0.38919259,105840.0,105830.0,0.59169778]
[1762739769526,0.52876839,105840.0,105830.0,0.59169778]
[1762739770324,0.52876839,105840.0,105830.0,0.26098308]
[1762739770529,0.52876839,105840.0,105830.0,0.35549778]
[1762739770730,0.43426259,105840.0,105830.0,0.35549778]
[1762739771034,0.52876839,105840.0,105830.0,0.35549778]
[1762739771229,0.52876839,105840.0,105830.0,0.73909778]
[1762739771727,0.52876839,105840.0,105830.0,0.50289778]
[1762739772133,0.52876839,105840.0,105830.0,0.40838308]
[1762739773229,0.52876839,105840.0,105830.0,0.38838308]
[1762739773437,0.53989839,105840.0,105830.0,0.29996654]
[1762739775636,0.53989839,105840.0,105830.0,0.28733654]
[1762739776035,0.53989839,105840.0,105830.0,0.26502654]
[1762739776535,0.53989839,105840.0,105830.0,0.28733654]
[1762739777028,0.53989839,105840.0,105830.0,0.13993654]
[1762739779039,0.53989839,105840.0,105830.0,0.05152]
[1762739779229,0.53989839,105840.0,105830.0,0.13993654]
[1762739779831,0.53989839,105840.0,105830.0,0.24187308]
[1762739781327,0.52876839,105840.0,105830.0,0.33638778]
[1762739782135,0.43426259,105840.0,105830.0,0.33638778]
[1762739782440,0.52876839,105840.0,105830.0,0.35638778]
[1762739782840,0.43426259,105840.0,105830.0,0.35638778]
[1762739783135,0.52876839,105840.0,105830.0,0.35638778]
[1762739783540,0.41233259,105840.0,105830.0,0.35638778]
[1762739783839,0.50683839,105840.0,105830.0,0.35638778]
[1762739784038,0.52908839,105840.0,105830.0,0.35638778]
[1762739785340,0.16828839,105840.0,105830.0,0.35638778]
[1762739785738,0.52908839,105840.0,105830.0,0.35638778]
[1762739786142,0.43458259,105840.0,105830.0,0.35638778]
[1762739787342,0.43425259,105840.0,105830.0,0.35638778]
[1762739787541,0.38699456,105840.0,105830.0,0.57258778]
[1762739787743,0.02839259,105840.0,105830.0,0.59258778]
[1762739787942,0.12289839,105840.0,105830.0,0.59258778]
[1762739788142,0.12289839,105840.0,105830.0,0.35638778]
[1762739788647,0.02839259,105840.0,105830.0,0.35638778]
[1762739788844,0.16795839,105840.0,105830.0,0.38927308]
[1762739789048,0.54201839,105840.0,105830.0,0.83017654]
[1762739789242,0.54201839,105840.0,105830.0,0.91859308]
[1762739789748,0.52875839,105840.0,105830.0,0.91859308]
[1762739790150,0.52875839,105840.0,105830.0,1.01310778]
[1762739790352,0.52875839,105840.0,105830.0,0.91859308]
[1762739790947,0.41200259,105840.0,105830.0,1.01310778]
[1762739791145,0.52875839,105840.0,105830.0,1.01310778]
[1762739791348,0.43425259,105840.0,105830.0,1.01310778]
[1762739791546,0.41200259,105840.0,105830.0,1.01310778]
[1762739792344,0.52875839,105840.0,105830.0,1.01310778]
[1762739792949,0.43425259,105840.0,105830.0,1.01310778]
[1762739793850,0.40980456,105840.0,105830.0,1.26930778]
[1762739794056,0.52875839,105840.0,105830.0,1.03310778]
[1762739794255,0.52875839,105840.0,105830.0,0.93859308]
[1762739794553,0.52875839,105840.0,105830.0,0.91859308]
[1762739796360,0.52875839,105840.0,105830.0,0.38927308]
[1762739797256,0.54201839,105840.0,105830.0,0.28733654]
[1762739800154,0.54201839,105840.0,105830.0,0.13993654]
[1762739801859,0.52875839,105840.0,105830.0,0.15345654]
[1762739802060,0.54201839,105840.0,105830.0,0.22835308]
[1762739802461,0.54201839,105840.0,105830.0,0.15345654]
[1762739802662,0.52875839,105840.0,105830.0,0.24187308]
[1762739803059,0.54201839,105840.0,105830.0,0.24187308]
[1762739804566,0.52875839,105840.0,105830.0,0.24187308]
[1762739804750,0.54201839,105840.0,105830.0,0.24187308]
[1762739804953,0.54201839,105840.0,105830.0,0.22835308]
[1762739807153,0.54201839,105840.0,105830.0,0.18383308]
[1762739807352,0.54201839,105840.0,105830.0,0.09541654]
[1762739809859,0.1444937,105820.0,105810.0,0.13472145]
[1762739810058,0.89055825,105820.0,105810.0,0.02364491]
[1762739810366,0.1439926,105810.0,105800.0,0.04886567]
[1762739810665,0.1439926,105810.0,105800.0,0.02620567]
[1762739810666,0.52918519,105810.0,105800.0,0.02620567]
[1762739811051,0.52918519,105810.0,105800.0,0.04886567]
[1762739811453,0.43465259,105810.0,105800.0,0.23182381]
[1762739811657,0.52918519,105810.0,105800.0,0.24465381]
[1762739812166,0.38519259,105810.0,105800.0,0.35307035]
[1762739812464,0.38619259,105810.0,105800.0,0.35707035]
[1762739812965,0.38919259,105810.0,105800.0,0.35807035]
[1762739813163,0.38699456,105810.0,105800.0,0.35807035]
[1762739813466,0.38919259,105810.0,105800.0,0.59435035]
[1762739813661,0.38919259,105810.0,105800.0,0.59035035]
[1762739814566,0.38919259,105810.0,105800.0,0.35407035]
[1762739814870,0.52851519,105810.0,105800.0,0.25952875]
[1762739816165,0.43398259,105810.0,105800.0,0.35407025]
[1762739816765,0.52851519,105810.0,105800.0,0.25952875]
[1762739818667,0.52851519,105810.0,105800.0,0.35407025]
[1762739818969,0.52851519,105810.0,105800.0,0.25952875]
[1762739819468,0.52851519,105810.0,105800.0,0.35407025]
[1762739819870,0.52851519,105810.0,105800.0,0.25952875]
[1762739820257,0.52851519,105810.0,105800.0,0.35407025]
[1762739820863,0.52851519,105810.0,105800.0,0.33448681]
[1762739821162,0.52851519,105810.0,105800.0,0.48188681]
[1762739822568,0.52814207,105810.0,105800.0,0.48188681]
[1762739822963,0.43360947,105810.0,105800.0,0.48188681]
[1762739823265,0.02801947,105810.0,105800.0,0.96528681]
[1762739823465,0.00619803,105810.0,105800.0,1.49472681]
[1762739823770,0.02782803,105810.0,105800.0,1.22472681]
[1762739823971,0.05098803,105810.0,105800.0,1.22472681]
[1762739824172,0.14552053,105810.0,105800.0,0.76938531]
[1762739824563,0.05098803,105810.0,105800.0,0.86392681]
[1762739824962,0.50632053,105810.0,105800.0,0.76938531]
[1762739825466,0.52813328,105810.0,105800.0,0.86392681]
[1762739825778,0.52813328,105810.0,105800.0,0.76938531]
[1762739826274,0.52813328,105810.0,105800.0,0.86392681]
[1762739826773,0.52813328,105810.0,105800.0,0.33448681]
[1762739827271,7.196e-05,105820.0,105810.0,0.1386726]
[1762739827471,0.36094141,105830.0,105820.0,0.1470436]
[1762739827472,0.02177141,105830.0,105820.0,0.1470436]
[1762739827671,0.00014141,105830.0,105820.0,0.60646842]
[1762739828072,0.02177141,105830.0,105820.0,0.60646842]
[1762739828271,0.04493141,105830.0,105820.0,0.5278436]
[1762739828567,0.1553578,105830.0,105820.0,0.50356482]
[1762739830071,0.1563578,105830.0,105820.0,0.50356482]
[1762739830379,0.1583578,105830.0,105820.0,0.51756482]
[1762739830868,0.0638431,105830.0,105820.0,0.51756482]
[1762739831064,0.0638431,105830.0,105820.0,0.61208842]
[1762739831269,0.0502131,105830.0,105820.0,0.61208842]
[1762739831777,0.0638431,105830.0,105820.0,0.61008842]
[1762739832278,0.0638431,105830.0,105820.0,0.59008842]
[1762739832474,0.0638431,105830.0,105820.0,0.61008842]
[1762739832874,0.06164507,105830.0,105820.0,0.61008842]
[1762739833778,0.00322507,105830.0,105820.0,0.75008842]
[1762739834879,0.00322507,105830.0,105820.0,0.92008842]
[1762739835282,0.00322507,105830.0,105820.0,0.75008842]
[1762739835475,0.05046775,105850.0,105840.0,0.1514758]
[1762739835676,0.05266578,105850.0,105840.0,0.68952544]
[1762739835880,0.09745578,105850.0,105840.0,0.59501964]
[1762739836179,0.09745578,105850.0,105840.0,0.68952544]
[1762739836372,0.09756565,105850.0,105840.0,0.59501964]
[1762739836575,0.09756565,105850.0,105840.0,0.68952544]
[1762739836773,0.11456565,105850.0,105840.0,0.69152544]
[1762739836975,0.12956565,105850.0,105840.0,0.69252544]
[1762739837377,0.0790979,105850.0,105840.0,0.70216139]
[1762739837676,0.01810987,105850.0,105840.0,0.96116139]
[1762739837977,0.05060916,105860.0,105850.0,0.05697]
[1762739838174,0.07443719,105860.0,105850.0,0.51639482]
[1762739838370,0.07443719,105860.0,105850.0,0.61089162]
[1762739838778,0.07452059,105860.0,105850.0,0.61089162]
[1762739839281,0.09350394,105860.0,105850.0,0.61089162]
[1762739839473,0.08907197,105860.0,105850.0,0.61189162]
[1762739839679,0.10187394,105860.0,105850.0,0.61389162]
[1762739840481,0.24137987,105860.0,105850.0,0.51939482]
[1762739840684,0.14689197,105860.0,105850.0,0.51939482]
[1762739841587,0.24137987,105860.0,105850.0,0.51939482]
[1762739842989,0.25250987,105860.0,105850.0,0.13859482]
[1762739843391,0.20204212,105860.0,105850.0,0.13859482]
[1762739843689,0.25250987,105860.0,105850.0,0.12576482]
[1762739845591,0.24137987,105860.0,105850.0,0.13925482]
[1762739847978,0.25250987,105860.0,105850.0,0.13925482]
[1762739848185,0.61330987,105860.0,105850.0,0.13925482]
[1762739849194,0.63003774,105860.0,105850.0,0.003]
[1762739849804,0.61297595,105860.0,105850.0,0.003]
[1762739850094,0.1484058,105840.0,105830.0,0.07876623]
[1762739850304,0.53258521,105840.0,105830.0,0.07876623]
[1762739850591,0.94351264,105840.0,105830.0,0.00014141]
[1762739850795,0.1373526,105810.0,105800.0,0.06442567]
[1762739850993,0.16080268,105810.0,105800.0,0.14305049]
[1762739851192,0.52160268,105810.0,105800.0,0.14305049]
[1762739851391,0.53268268,105810.0,105800.0,0.12956049]
[1762739851596,0.53268268,105810.0,105800.0,0.08335049]
[1762739852595,0.53468268,105810.0,105800.0,0.02172567]
[1762739852799,0.1484415,105800.0,105790.0,0.07862482]
[1762739853002,0.1485004,105790.0,105780.0,0.19877336]
[1762739853298,0.13956843,105790.0,105780.0,0.19877336]
[1762739853498,0.50036843,105790.0,105780.0,0.19877336]
[1762739853901,0.13956843,105790.0,105780.0,0.19877336]
[1762739854596,0.51149843,105790.0,105780.0,0.19877336]
[1762739854798,0.13956843,105790.0,105780.0,0.19877336]
[1762739855500,0.14256843,105790.0,105780.0,0.19877336]
[1762739855701,0.14356843,105790.0,105780.0,0.21077336]
[1762739857302,0.1182793,105780.0,105770.0,0.00472701]
[1762739857502,0.1182883,105770.0,105760.0,0.00011248]
[1762739857800,0.4813591,105770.0,105760.0,0.05981248]
[1762739859003,0.4853591,105770.0,105760.0,0.07381248]
[1762739859202,0.36487277,105770.0,105760.0,0.07381248]
[1762739859407,0.00014141,105780.0,105770.0,0.1407783]